fUSD/lending_fUSD_20260406
["ID","MTS","AMOUNT","RATE_DAILY","PERIOD"]
[419906912,1775496643016,-257.068129,0.00012534,2]
[419906913,1775496643027,-150.0,0.0001255,2]
[419906916,1775496643038,-150.0,0.0001255,2]
[419906919,1775496643048,-1066.46,0.00012563,2]
[419906922,1775496643058,-150.0,0.0001257,2]
[419906924,1775496643069,-150.0,0.0001257,2]
[419906926,1775496643079,-150.0,0.0001257,2]
[419906927,1775496643089,-150.0,0.00012588,2]
[419906928,1775496643099,-150.0,0.00012618,2]
[419906929,1775496643109,-150.0,0.00012618,2]
[419906930,1775496643119,-150.0,0.0001263,2]
[419906931,1775496643129,-150.0,0.0001263,2]
[419906932,1775496643144,-150.0,0.00012655,2]
[419906933,1775496643154,-150.0,0.00012659,2]
[419906934,1775496643165,-150.0,0.00012667,2]
[419906935,1775496643175,-344.12797301,0.000127,2]
[419906936,1775496643185,-150.0,0.0001271,2]
[419906937,1775496643196,-150.0,0.0001271,2]
[419906938,1775496643207,-150.0,0.00012715,2]
[419906939,1775496643217,-150.0,0.00012731,2]
[419906940,1775496643227,-150.0,0.0001274,2]
[419906941,1775496643238,-150.0,0.0001274,2]
[419906942,1775496643249,-150.0,0.00012764,2]
[419906943,1775496643259,-150.0,0.00012774,2]
[419906944,1775496643270,-150.0,0.0001279,2]
[419906945,1775496643280,-150.0,0.0001279,2]
[419906946,1775496643290,-152.0,0.00012799,4]
[419906947,1775496643301,-150.0,0.00012802,2]
[419906948,1775496643311,-150.0,0.00012813,2]
[419906949,1775496643320,-150.0,0.00012813,2]
[419906950,1775496643330,-150.0,0.00012825,2]
[419906951,1775496643340,-1066.46,0.00012837,2]
[419906952,1775496643351,-200.0,0.00012837,2]
[419906953,1775496643361,-150.0,0.00012861,2]
[419906954,1775496643371,-150.0,0.0001287,2]
[419906955,1775496643381,-150.0,0.0001287,2]
[419906956,1775496643391,-150.0,0.00012874,2]
[419906957,1775496643402,-9531.12,0.00012893,2]
[419906958,1775496643412,-150.99,0.00012893,2]
[419906959,1775496643422,-9999.99,0.00012893,2]
[419906960,1775496643432,-150.99,0.00012893,2]
[419906961,1775496643442,-1209.51,0.00012893,2]
[419906962,1775496643453,-4961.23,0.00012893,2]
[419906963,1775496643463,-4357.04,0.00012893,2]
[419906964,1775496643473,-313.09,0.00012893,2]
[419906965,1775496643483,-299.99,0.00012893,2]
[419906966,1775496643493,-995.86,0.00012893,2]
[419906967,1775496643503,-150.0,0.0001291,2]
[419906968,1775496643515,-150.0,0.0001291,2]
[419906969,1775496643525,-150.0,0.0001291,2]
[419906970,1775496643536,-150.0,0.0001291,2]
[419906971,1775496643546,-165.21,0.00012936,2]
[419906972,1775496643556,-150.0,0.00012945,2]
[419906973,1775496643566,-150.0,0.0001295,2]
[419906974,1775496643577,-150.0,0.0001295,2]
[419906975,1775496643587,-150.0,0.00012958,2]
[419906976,1775496643597,-150.0,0.00012995,2]
[419906977,1775496643607,-250.0,0.00013,2]
[419906978,1775496643618,-150.0,0.00013007,2]
[419906979,1775496643628,-150.0,0.00013007,2]
[419906980,1775496643638,-150.0,0.00013017,2]
[419906981,1775496643648,-150.0,0.00013029,2]
[419906982,1775496643658,-150.0,0.00013029,2]
[419906983,1775496643668,-578.20924308,0.00013043,2]
[419906984,1775496643679,-200.0,0.00013043,2]
[419906985,1775496643689,-1377.42282659,0.00013043,2]
[419906986,1775496643699,-500.0,0.00013043,2]
[419906987,1775496643709,-500.0,0.00013043,2]
[419906988,1775496643719,-695.39793187,0.00013043,2]
[419906989,1775496643729,-500.0,0.00013043,2]
[419906990,1775496643740,-500.0,0.00013043,2]
[419906991,1775496643750,-500.0,0.00013043,2]
[419906992,1775496643761,-500.0,0.00013043,2]
[419906993,1775496643771,-500.0,0.00013043,2]
[419906995,1775496643782,-500.0,0.00013043,2]
[419906997,1775496643791,-500.0,0.00013043,2]
[419906999,1775496643802,-500.0,0.00013043,2]
[419907001,1775496643813,-500.0,0.00013043,2]
[419907003,1775496643824,-500.0,0.00013043,2]
[419907006,1775496643835,-398.03373912,0.00013043,2]
[419907008,1775496643846,-500.0,0.00013043,2]
[419907010,1775496643856,-783.98949462,0.00013043,2]
[419907012,1775496643866,-174.61919141,0.00013043,2]
[419907013,1775496643877,-749.3666441,0.00013043,2]
[419907014,1775496643887,-349.4458247,0.00013043,2]
[419907015,1775496643897,-150.0,0.00013045,2]
[419907016,1775496643907,-150.0,0.00013055,2]
[419907017,1775496643917,-290.091903,0.00013065,2]
[419907018,1775496643927,-171.76237,0.00013065,2]
[419907019,1775496643937,-24269.42299238,0.00013067,2]
[419907020,1775496643947,-150.0,0.00013079,2]
[419907021,1775496643958,-150.0,0.00013079,2]
[419907022,1775496643968,-433.0,0.00013088,2]
[419907023,1775496643979,-150.0,0.00013088,2]
[419907024,1775496643989,-500.0,0.00013098,2]
[419907025,1775496644000,-500.0,0.000131,2]
[419907026,1775496644010,-150.0,0.00013104,2]
[419907027,1775496644021,-150.0,0.00013109,2]
[419907028,1775496644031,-150.0,0.00013109,2]
[419907029,1775496644041,-1066.4798952,0.00013111,2]
[419907030,1775496644051,-150.0,0.00013152,2]
[419907031,1775496644061,-500.0,0.00013153,2]
[419907032,1775496644072,-150.0,0.0001316,2]
[419907033,1775496644081,-284.364633,0.00013161,2]
[419907034,1775496644091,-150.0,0.00013164,2]
[419907035,1775496644101,-2351.0,0.00013187,2]
[419907036,1775496644111,-150.0,0.00013189,2]
[419907037,1775496644120,-150.0,0.00013189,2]
[419907038,1775496644130,-160.0,0.00013191,2]
[419907039,1775496644140,-152.0,0.00013196,5]
[419907040,1775496644150,-150.0,0.00013201,2]
[419907041,1775496644160,-150.0,0.00013201,2]
[419907042,1775496644643,-500.0,0.00013208,2]
[419907043,1775496644658,-150.0,0.00013231,2]
[419907044,1775496644668,-150.0,0.00013249,2]
[419907045,1775496644677,-150.0,0.00013249,2]
[419907046,1775496644686,-150.0,0.00013249,2]
[419907047,1775496644696,-500.0,0.00013263,2]
[419907048,1775496644706,-150.0,0.00013269,2]
[419907049,1775496644716,-150.0,0.00013269,2]
[419907050,1775496644725,-250.0,0.00013281,2]
[419907051,1775496644735,-150.0,0.00013298,2]
[419907052,1775496644744,-150.0,0.00013303,2]
[419907053,1775496644754,-150.0,0.00013313,2]
[419907054,1775496644763,-150.0,0.00013317,2]
[419907055,1775496644772,-500.0,0.00013318,2]
[419907056,1775496644782,-150.0,0.00013334,2]
[419907057,1775496644791,-150.0,0.00013346,2]
[419907058,1775496644802,-150.0,0.00013349,2]
[419907059,1775496644811,-150.0,0.00013349,2]
[419907060,1775496644820,-500.0,0.00013373,2]
[419907061,1775496644829,-150.0,0.00013374,2]
[419907062,1775496644838,-200.0,0.00013385,2]
[419907063,1775496644848,-150.0,0.00013395,2]
[419907064,1775496644857,-150.0,0.00013395,2]
[419907065,1775496644867,-150.0,0.00013419,2]
[419907066,1775496644876,-150.0,0.00013419,2]
[419907067,1775496644885,-3240.0,0.00013425,2]
[419907068,1775496644895,-500.0,0.00013428,2]
[419907069,1775496644904,-150.0,0.00013429,2]
[419907070,1775496644914,-150.0,0.00013429,2]
[419907071,1775496644923,-150.0,0.00013443,2]
[419907072,1775496644932,-150.0,0.00013446,2]
[419907073,1775496644941,-500.0,0.00013483,2]
[419907074,1775496644951,-150.0,0.00013492,2]
[419907075,1775496644960,-344.12797301,0.000135,2]
[419907076,1775496644969,-188.1615,0.000135,2]
[419907077,1775496644979,-150.0,0.00013504,2]
[419907078,1775496644988,-150.0,0.00013509,2]
[419907079,1775496644997,-150.0,0.00013509,2]
[419907080,1775496645007,-150.0,0.00013518,2]
[419907081,1775496645016,-500.0,0.00013538,2]
[419907082,1775496645026,-150.0,0.00013541,2]
[419907083,1775496645035,-152.51587458,0.00013589,2]
[419907084,1775496645045,-150.0,0.00013589,2]
[419907085,1775496645054,-150.0,0.00013589,2]
[419907086,1775496645063,-150.0,0.00013589,2]
[419907087,1775496645072,-154.20526906,0.00013589,2]
[419907088,1775496645081,-150.0,0.00013589,2]
[419907089,1775496645090,-150.0,0.00013589,2]
[419907090,1775496645100,-153.23279417,0.00013589,2]
[419907091,1775496645109,-150.0,0.00013589,2]
[419907092,1775496645118,-153.27019078,0.00013589,2]
[419907093,1775496645127,-150.0,0.00013589,2]
[419907094,1775496645136,-200.0,0.00013591,2]
[419907095,1775496645146,-1428.38747117,0.00013591,2]
[419907096,1775496645155,-181.08010149,0.00013591,2]
[419907097,1775496645164,-152.0,0.00013592,6]
[419907098,1775496645173,-24269.42299238,0.00013633,2]
[419907099,1775496645182,-213.42825389,0.00013689,2]
[419907100,1775496645191,-500.0,0.00013698,2]
[419907101,1775496645200,-500.0,0.00013698,2]
[419907102,1775496645210,-500.0,0.00013698,2]
[419907103,1775496645219,-500.0,0.00013698,2]
[419907104,1775496645228,-500.0,0.00013698,2]
[419907105,1775496645238,-500.0,0.00013698,2]
[419907106,1775496645247,-500.0,0.00013698,2]
[419907107,1775496645257,-500.0,0.00013698,2]
[419907108,1775496645266,-500.0,0.00013698,2]
[419907109,1775496645275,-500.0,0.00013698,2]
[419907110,1775496645285,-500.0,0.00013698,2]
[419907111,1775496645294,-500.0,0.00013698,2]
[419907112,1775496645303,-500.0,0.00013698,2]
[419907113,1775496645312,-597.32595487,0.00013698,2]
[419907114,1775496645322,-500.0,0.00013698,2]
[419907115,1775496645332,-508.61892667,0.00013698,2]
[419907116,1775496645341,-500.0,0.00013698,2]
[419907117,1775496645352,-500.0,0.00013698,2]
[419907118,1775496645361,-500.0,0.00013698,2]
[419907119,1775496645370,-500.0,0.00013698,2]
[419907120,1775496645379,-500.0,0.00013698,2]
[419907121,1775496645389,-500.0,0.00013698,2]
[419907122,1775496645399,-500.0,0.00013698,2]
[419907123,1775496645409,-500.0,0.00013698,2]
[419907124,1775496645418,-500.0,0.00013698,2]
[419907125,1775496645427,-500.0,0.00013698,2]
[419907126,1775496645437,-559.50723655,0.00013698,2]
[419907127,1775496645446,-500.0,0.00013698,2]
[419907128,1775496645455,-500.0,0.00013698,2]
[419907129,1775496645464,-500.0,0.00013698,2]
[419907130,1775496645473,-500.0,0.00013698,2]
[419907131,1775496645483,-500.0,0.00013698,2]
[419907132,1775496645491,-500.0,0.00013698,2]
[419907133,1775496645502,-503.57594394,0.00013698,2]
[419907134,1775496645511,-500.0,0.00013698,2]
[419907135,1775496645521,-500.0,0.00013698,2]
[419907136,1775496645530,-500.0,0.00013698,2]
[419907137,1775496645539,-500.0,0.00013698,2]
[419907138,1775496645549,-500.0,0.00013698,2]
[419907139,1775496645558,-500.0,0.00013698,2]
[419907140,1775496645567,-500.0,0.00013698,2]
[419907141,1775496645577,-500.0,0.00013698,2]
[419907142,1775496645586,-334.02643621,0.00013698,2]
[419907143,1775496645595,-500.0,0.00013698,2]
[419907144,1775496645605,-500.0,0.00013698,2]
[419907145,1775496645614,-500.0,0.00013698,2]
[419907146,1775496645624,-500.0,0.00013698,2]
[419907147,1775496645633,-500.0,0.00013698,2]
[419907148,1775496645642,-500.0,0.00013698,2]
[419907149,1775496645651,-500.0,0.00013698,2]
[419907150,1775496645660,-500.0,0.00013698,2]
[419907151,1775496645670,-500.0,0.00013698,2]
[419907152,1775496645679,-500.0,0.00013698,2]
[419907153,1775496645688,-500.0,0.00013698,2]
[419907154,1775496645697,-500.0,0.00013698,2]
[419907155,1775496645707,-500.0,0.00013698,2]
[419907156,1775496645716,-500.0,0.00013698,2]
[419907157,1775496645726,-500.0,0.00013698,2]
[419907159,1775496645735,-500.0,0.00013698,2]
[419907160,1775496645744,-500.0,0.00013698,2]
[419907161,1775496645754,-500.0,0.00013698,2]
[419907162,1775496645763,-176.21304902,0.00013698,2]
[419907163,1775496645772,-500.0,0.00013698,2]
[419907164,1775496645782,-500.0,0.00013698,2]
[419907165,1775496645791,-500.0,0.00013698,2]
[419907166,1775496645800,-500.0,0.00013698,2]
[419907167,1775496645810,-500.0,0.00013698,2]
[419907168,1775496645819,-500.0,0.00013698,2]
[419907169,1775496645828,-500.0,0.00013698,2]
[419907170,1775496645837,-500.0,0.00013698,2]
[419907171,1775496645846,-500.0,0.00013698,2]
[419907172,1775496645855,-500.0,0.00013698,2]
[419907173,1775496645864,-500.0,0.00013698,2]
[419907174,1775496645873,-500.0,0.00013698,2]
[419907175,1775496645883,-500.0,0.00013698,2]
[419907176,1775496645892,-502.76097898,0.00013698,2]
[419907177,1775496645901,-500.0,0.00013698,2]
[419907178,1775496645911,-507.01970036,0.00013698,2]
[419907179,1775496645920,-500.0,0.00013698,2]
[419907180,1775496645930,-500.0,0.00013698,2]
[419907181,1775496645939,-500.0,0.00013698,2]
[419907182,1775496645949,-500.0,0.00013698,2]
[419907183,1775496645958,-500.0,0.00013698,2]
[419907184,1775496645968,-500.0,0.00013698,2]
[419907185,1775496645978,-500.0,0.00013698,2]
[419907186,1775496645987,-500.0,0.00013698,2]
[419907187,1775496645996,-500.0,0.00013698,2]
[419907188,1775496646005,-500.0,0.00013698,2]
[419907189,1775496646015,-500.0,0.00013698,2]
[419907190,1775496646025,-500.0,0.00013698,2]
[419907191,1775496646034,-500.0,0.00013698,2]
[419907192,1775496646043,-500.0,0.00013698,2]
[419907193,1775496646053,-500.0,0.00013698,2]
[419907194,1775496646062,-500.0,0.00013698,2]
[419907195,1775496646071,-500.0,0.00013698,2]
[419907196,1775496646080,-566.37,0.00013698,2]
[419907197,1775496646090,-500.0,0.00013698,2]
[419907198,1775496646099,-500.0,0.00013698,2]
[419907199,1775496646108,-500.0,0.00013698,2]
[419907200,1775496646117,-500.0,0.00013698,2]
[419907201,1775496646126,-228.92,0.00013698,2]
[419907202,1775496646135,-500.0,0.00013698,2]
[419907203,1775496646145,-500.0,0.00013698,2]
[419907204,1775496646154,-500.0,0.00013698,2]
[419907205,1775496646164,-500.0,0.00013698,2]
[419907206,1775496646173,-500.0,0.00013698,2]
[419907207,1775496646182,-500.0,0.00013698,2]
[419907208,1775496646191,-500.0,0.00013698,2]
[419907209,1775496646200,-500.0,0.00013698,2]
[419907210,1775496646209,-500.0,0.00013698,2]
[419907211,1775496646218,-500.0,0.00013698,2]
[419907212,1775496646227,-500.0,0.00013698,2]
[419907213,1775496646237,-500.0,0.00013698,2]
[419907214,1775496646246,-500.0,0.00013698,2]
[419907215,1775496646255,-607.43953795,0.00013698,2]
[419907216,1775496646265,-500.0,0.00013698,2]
[419907217,1775496646274,-500.0,0.00013698,2]
[419907218,1775496646283,-500.0,0.00013698,2]
[419907219,1775496646292,-500.0,0.00013698,2]
[419907220,1775496646302,-500.0,0.00013698,2]
[419907221,1775496646311,-500.0,0.00013698,2]
[419907222,1775496646320,-456.32574047,0.00013698,2]
[419907223,1775496646330,-500.0,0.00013698,2]
[419907224,1775496646338,-500.0,0.00013698,2]
[419907225,1775496646347,-500.0,0.00013698,2]
[419907226,1775496646356,-500.0,0.00013698,2]
[419907227,1775496646366,-500.0,0.00013698,2]
[419907228,1775496646375,-500.0,0.00013698,2]
[419907229,1775496646384,-500.0,0.00013698,2]
[419907230,1775496646393,-500.0,0.00013698,2]
[419907231,1775496646403,-500.0,0.00013698,2]
[419907232,1775496646412,-500.0,0.00013698,2]
[419907233,1775496646422,-500.0,0.00013698,2]
[419907234,1775496646432,-500.0,0.00013698,2]
[419907235,1775496646441,-500.0,0.00013698,2]
[419907236,1775496646450,-500.0,0.00013698,2]
[419907237,1775496646459,-500.0,0.00013698,2]
[419907238,1775496646468,-500.0,0.00013698,2]
[419907239,1775496646478,-500.0,0.00013698,2]
[419907240,1775496646487,-500.0,0.00013698,2]
[419907241,1775496646496,-256.00425953,0.00013698,2]
[419907242,1775496646505,-500.0,0.00013698,2]
[419907243,1775496646516,-500.0,0.00013698,2]
[419907244,1775496646526,-500.0,0.00013698,2]
[419907245,1775496646535,-500.0,0.00013698,2]
[419907246,1775496646544,-500.0,0.00013698,2]
[419907247,1775496646554,-500.0,0.00013698,2]
[419907248,1775496646563,-500.0,0.00013698,2]
[419907249,1775496646572,-500.0,0.00013698,2]
[419907250,1775496646581,-500.0,0.00013698,2]
[419907251,1775496646590,-500.0,0.00013698,2]
[419907253,1775496646600,-500.0,0.00013698,2]
[419907254,1775496646609,-500.0,0.00013698,2]
[419907256,1775496646618,-500.0,0.00013698,2]
[419907258,1775496646627,-500.0,0.00013698,2]
[419907259,1775496646637,-500.0,0.00013698,2]
[419907261,1775496646646,-500.0,0.00013698,2]
[419907262,1775496646656,-500.0,0.00013698,2]
[419907264,1775496646665,-500.0,0.00013698,2]
[419907266,1775496646674,-500.0,0.00013698,2]
[419907267,1775496646684,-500.0,0.00013698,2]
[419907269,1775496646693,-500.0,0.00013698,2]
[419907271,1775496646702,-500.0,0.00013698,2]
[419907272,1775496646711,-500.0,0.00013698,2]
[419907274,1775496646721,-500.0,0.00013698,2]
[419907276,1775496646730,-500.0,0.00013698,2]
[419907277,1775496646739,-500.0,0.00013698,2]
[419907279,1775496646748,-500.0,0.00013698,2]
[419907281,1775496646758,-500.0,0.00013698,2]
[419907282,1775496646768,-500.0,0.00013698,2]
[419907284,1775496646778,-500.0,0.00013698,2]
[419907286,1775496646787,-500.0,0.00013698,2]
[419907287,1775496646796,-500.0,0.00013698,2]
[419907289,1775496646805,-500.0,0.00013698,2]
[419907291,1775496646814,-500.0,0.00013698,2]
[419907292,1775496646824,-500.0,0.00013698,2]
[419907294,1775496646833,-500.0,0.00013698,2]
[419907296,1775496646842,-500.0,0.00013698,2]
[419907297,1775496646851,-500.0,0.00013698,2]
[419907299,1775496646860,-500.0,0.00013698,2]
[419907301,1775496646870,-500.0,0.00013698,2]
[419907302,1775496646879,-500.0,0.00013698,2]
[419907304,1775496646888,-500.0,0.00013698,2]
[419907306,1775496646898,-500.0,0.00013698,2]
[419907307,1775496646906,-500.0,0.00013698,2]
[419907309,1775496646916,-500.0,0.00013698,2]
[419907310,1775496646925,-500.0,0.00013698,2]
[419907312,1775496646934,-150.0,0.00013699,2]
[419907314,1775496646943,-150.0,0.00013699,2]
[419907315,1775496646952,-150.0,0.00013699,2]
[419907316,1775496646962,-228.23268139,0.00013699,2]
[419907317,1775496646971,-150.0,0.00013699,2]
[419907318,1775496646980,-150.0,0.00013699,2]
[419907319,1775496646989,-1347.12,0.00013699,2]
[419907320,1775496646998,-1527.17,0.00013699,2]
[419907321,1775496647008,-151.0,0.00013699,2]
[419907322,1775496647017,-151.0,0.00013699,2]
[419907323,1775496647027,-151.0,0.00013699,2]
[419907324,1775496647036,-151.0,0.00013699,2]
[419907325,1775496647045,-151.0,0.00013699,2]
[419907326,1775496647054,-276.32838,0.00013699,2]
[419907327,1775496647064,-276.32838,0.00013699,2]
[419907328,1775496647073,-276.32838,0.00013699,2]
[419907329,1775496647083,-151.0,0.00013699,2]
[419907330,1775496647092,-276.32838,0.00013699,2]
[419907331,1775496647102,-151.0,0.00013699,2]
[419907332,1775496647111,-151.0,0.00013699,2]
[419907333,1775496647120,-151.0,0.00013699,2]
[419907334,1775496647130,-151.0,0.00013699,2]
[419907335,1775496647139,-151.0,0.00013699,2]
[419907336,1775496647148,-179.327698,0.00013699,2]
[419907337,1775496647157,-151.0,0.00013699,2]
[419907338,1775496647167,-151.0,0.00013699,2]
[419907339,1775496647176,-179.327698,0.00013699,2]
[419907340,1775496647185,-151.0,0.00013699,2]
[419907341,1775496647195,-179.327698,0.00013699,2]
[419907342,1775496647204,-197.568857,0.00013699,2]
[419907343,1775496647214,-151.0,0.00013699,2]
[419907344,1775496647223,-151.0,0.00013699,2]
[419907345,1775496647232,-179.327698,0.00013699,2]
[419907346,1775496647242,-280.584218,0.00013699,2]
[419907347,1775496647251,-245.770064,0.00013699,2]
[419907348,1775496647260,-280.584218,0.00013699,2]
[419907349,1775496647270,-245.770064,0.00013699,2]
[419907350,1775496647281,-280.584218,0.00013699,2]
[419907351,1775496647290,-151.0,0.00013699,2]
[419907352,1775496647299,-151.0,0.00013699,2]
[419907353,1775496647308,-245.770064,0.00013699,2]
[419907354,1775496647318,-280.584218,0.00013699,2]
[419907355,1775496647328,-151.0,0.00013699,2]
[419907356,1775496647337,-245.770064,0.00013699,2]
[419907357,1775496647346,-151.0,0.00013699,2]
[419907358,1775496647355,-766.93164,0.00013699,2]
[419907359,1775496647364,-766.93164,0.00013699,2]
[419907360,1775496647373,-151.0,0.00013699,2]
[419907361,1775496647382,-766.93164,0.00013699,2]
[419907362,1775496647391,-205.653364,0.00013699,2]
[419907363,1775496647400,-766.93164,0.00013699,2]
[419907364,1775496647409,-1519.04079,0.00013699,2]
[419907365,1775496647418,-310.015346,0.00013699,2]
[419907366,1775496647427,-1519.04079,0.00013699,2]
[419907367,1775496647436,-310.015346,0.00013699,2]
[419907368,1775496647445,-1519.04079,0.00013699,2]
[419907369,1775496647455,-234.889848,0.00013699,2]
[419907370,1775496647464,-310.015346,0.00013699,2]
[419907371,1775496647474,-1519.04079,0.00013699,2]
[419907372,1775496647483,-310.015346,0.00013699,2]
[419907373,1775496647492,-151.0,0.00013699,2]
[419907374,1775496647501,-234.889848,0.00013699,2]
[419907375,1775496647511,-272.199966,0.00013699,2]
[419907376,1775496647520,-272.199966,0.00013699,2]
[419907377,1775496647529,-234.889848,0.00013699,2]
[419907378,1775496647538,-151.0,0.00013699,2]
[419907379,1775496647547,-151.0,0.00013699,2]
[419907380,1775496647556,-234.889848,0.00013699,2]
[419907381,1775496647566,-272.199966,0.00013699,2]
[419907382,1775496647576,-151.0,0.00013699,2]
[419907383,1775496647586,-151.0,0.00013699,2]
[419907384,1775496647596,-272.199966,0.00013699,2]
[419907385,1775496647606,-151.0,0.00013699,2]
[419907386,1775496647615,-151.0,0.00013699,2]
[419907387,1775496647625,-534.952328,0.00013699,2]
[419907388,1775496647635,-151.0,0.00013699,2]
[419907389,1775496647644,-534.952328,0.00013699,2]
[419907390,1775496647654,-534.952328,0.00013699,2]
[419907391,1775496647663,-534.952328,0.00013699,2]
[419907392,1775496647672,-500.0,0.00013699,2]
[419907393,1775496647682,-500.0,0.00013699,2]
[419907394,1775496647691,-501.64853068,0.00013699,2]
[419907395,1775496647700,-502.32819122,0.00013699,2]
[419907396,1775496647710,-500.0,0.00013699,2]
[419907397,1775496647719,-286.46237648,0.00013699,2]
[419907398,1775496647729,-500.0,0.00013699,2]
[419907399,1775496647739,-500.0,0.00013699,2]
[419907400,1775496647748,-500.0,0.00013699,2]
[419907401,1775496647758,-500.51473043,0.00013699,2]
[419907402,1775496647767,-337.84455229,0.00013699,2]
[419907403,1775496647776,-164.37135814,0.00013699,2]
[419907404,1775496647785,-163.81595005,0.00013699,2]
[419907405,1775496647794,-474.500506,0.00013699,2]
[419907406,1775496647803,-159.81870043,0.00013699,2]
[419907407,1775496647813,-503.55252603,0.00013699,2]
[419907408,1775496647822,-500.0,0.00013699,2]
[419907409,1775496647831,-500.0,0.00013699,2]
[419907410,1775496647840,-166.5524378,0.00013699,2]
[419907411,1775496647850,-352.48557695,0.00013699,2]
[419907412,1775496647859,-500.0,0.00013699,2]
[419907413,1775496647869,-500.0,0.00013699,2]
[419907414,1775496647878,-500.0,0.00013699,2]
[419907415,1775496647887,-500.0,0.00013699,2]
[419907416,1775496647896,-500.0,0.00013699,2]
[419907417,1775496647906,-500.0,0.00013699,2]
[419907418,1775496647915,-500.0,0.00013699,2]
[419907419,1775496647924,-561.18350506,0.00013699,2]
[419907420,1775496647934,-500.0,0.00013699,2]
[419907421,1775496647944,-500.0,0.00013699,2]
[419907422,1775496647953,-429.76417009,0.00013699,2]
[419907423,1775496647962,-985.59,0.00013699,2]
[419907424,1775496647971,-3844.31,0.000137,2]
[419907425,1775496647981,-3844.31,0.000137,2]
[419907426,1775496647990,-3000.0,0.00013808,2]
[419907427,1775496647999,-1500.0,0.00013808,2]
[419907428,1775496648008,-970.0,0.0001388,5]
[419907429,1775496648017,-948.0,0.0001388,5]
[419907430,1775496648027,-3400.0,0.000139,5]
[419907431,1775496648037,-2400.0,0.000139,5]
[419907432,1775496648046,-500.0,0.00013932,2]
[419907433,1775496648055,-151.6719064,0.00013932,2]
[419907434,1775496648064,-500.0,0.00013972,2]
[419907435,1775496648073,-150.0,0.00013973,2]
[419907436,1775496648083,-150.0,0.00013973,2]
[419907437,1775496648092,-150.0,0.00013973,2]
[419907438,1775496648101,-150.0,0.00013973,2]
[419907439,1775496648111,-985.59,0.00013973,2]
[419907440,1775496648120,-152.0,0.00013989,7]
[419907441,1775496648130,-855.85192254,0.00014006,2]
[419907442,1775496648140,-500.0,0.00014029,2]
[419907443,1775496648149,-1481.23780761,0.00014139,2]
[419907444,1775496648159,-200.0,0.00014139,2]
[419907445,1775496648168,-187.78006525,0.00014139,2]
[419907446,1775496648178,-176.41,0.0001417,2]
[419907447,1775496648187,-24269.42299238,0.000142,2]
[419907448,1775496648197,-666.0,0.00014219,2]
[419907449,1775496648206,-1263.0,0.0001422,2]
[419907450,1775496648215,-150.679,0.0001422,2]
[419907451,1775496648224,-1221.85,0.0001422,2]
[419907452,1775496648234,-925.0,0.0001422,2]
[419907453,1775496648243,-1052.848,0.0001422,2]
[419907454,1775496648253,-6021.0,0.0001422,2]
[419907455,1775496648263,-545.409279,0.0001422,2]